lending/lending_fUSD_20251106
["ID","MTS","AMOUNT","RATE_DAILY","PERIOD"]
[393308172,1762446457782,-1649.650299,0.00038356,120]
[393308173,1762446457859,-1649.650299,0.00038356,120]
[393308174,1762446457932,-827.165246,0.00038515,120]
[393308175,1762446458006,-827.165246,0.00038515,120]
[393308176,1762446458083,-827.165246,0.00038515,120]
[393308177,1762446458188,-703.1,0.00047999,30]
[393308178,1762446458271,-1000000.0,0.00048,120]
[393308179,1762446458356,-498949.00484462,0.00049,120]
[393308180,1762446458434,-1000000.0,0.00049,120]
[393308181,1762446458513,-1000000.0,0.00049,120]
[393308182,1762446458590,-1000000.0,0.00049,120]
[393308183,1762446458665,-2600.0,0.00049,120]
[393308184,1762446458739,-3000.0,0.00049,120]
[393308185,1762446458815,-50000.0,0.00049,35]
[393308186,1762446458888,-150.0,0.00049,30]
[393308187,1762446458963,-431.40984199,0.00049,120]
[393308188,1762446459036,-5245.0,0.00049,120]
[393308189,1762446459110,-15500.01,0.00049,120]
[393308190,1762446459184,-2000.0,0.00049036,120]
[393308191,1762446459260,-500.0,0.00049041,120]
[393308192,1762446459335,-209.0201705,0.00049041,120]
[393308193,1762446459410,-1140.0,0.00049155,30]
[393308194,1762446459486,-25000.0,0.0004917,30]
[393308195,1762446459561,-1681.68,0.00049257,120]
[393308196,1762446459638,-151.0,0.000493,120]
[393308197,1762446459713,-300.0,0.00049315,30]
[393308198,1762446459788,-300.0,0.00049315,30]
[393308199,1762446459863,-300.0,0.00049315,30]
[393308200,1762446459935,-300.0,0.00049315,30]
[393308201,1762446460011,-300.0,0.00049315,30]
[393308202,1762446460087,-300.0,0.00049315,30]
[393308203,1762446460163,-300.0,0.00049315,30]
[393308204,1762446460237,-300.0,0.00049315,30]
[393308205,1762446460314,-334.0,0.00049315,30]
[393308206,1762446460389,-300.0,0.00049315,30]
[393308207,1762446460475,-300.0,0.00049315,30]
[393308208,1762446460546,-334.74,0.00049315,120]
[393308209,1762446460617,-334.74,0.00049315,120]
[393308210,1762446460687,-334.74,0.00049315,120]
[393308211,1762446460760,-334.74,0.00049315,120]
[393308212,1762446460830,-334.74,0.00049315,120]
[393308213,1762446460899,-334.74,0.00049315,120]
[393308214,1762446460972,-334.74,0.00049315,120]
[393308215,1762446461043,-334.74,0.00049315,120]
[393308216,1762446461113,-334.74,0.00049315,120]
[393308217,1762446461183,-334.74,0.00049315,120]
[393308218,1762446461256,-334.74,0.00049315,120]
[393308219,1762446461328,-334.74,0.00049315,120]
[393308220,1762446461398,-334.74,0.00049315,120]
[393308221,1762446461467,-334.74,0.00049315,120]
[393308222,1762446461540,-334.74,0.00049315,120]
[393308223,1762446461612,-334.74,0.00049315,120]
[393308224,1762446461682,-334.74,0.00049315,120]
[393308225,1762446461750,-334.74,0.00049315,120]
[393308226,1762446461820,-334.74,0.00049315,120]
[393308227,1762446461894,-334.74,0.00049315,120]
[393308228,1762446461968,-334.74,0.00049315,120]
[393308229,1762446462039,-334.74,0.00049315,120]
[393308230,1762446462112,-334.74,0.00049315,120]
[393308231,1762446462185,-334.75013606,0.00049315,120]
[393308232,1762446462260,-248.15737342,0.00049315,120]
[393308233,1762446462337,-500.0,0.00049315,32]
[393308234,1762446462560,1649.650299,0.00038356,120]
[393308235,1762446462644,1649.650299,0.00038515,120]
[393308236,1762446462718,1649.650299,0.00038356,120]
[393308237,1762446462798,1649.650299,0.00038356,120]
[393308238,1762446462878,1649.650299,0.00038356,120]
[393308239,1762446462958,827.165246,0.00032,31]
[393308240,1762446463034,1649.650299,0.00038356,120]
[393308241,1762446463117,827.165254,0.00038515,120]
[393308242,1762446463201,1649.650299,0.00038515,120]
[393308243,1762446463281,353.69251011,0.00037383,30]
[393308244,1762446463372,1649.650299,0.00038356,120]
[393308245,1762446463456,355506.6798583,0.00046,120]
[393308246,1762446470159,200000.0,0.00015,2]
[393308247,1762446470194,547707.27272135,0.00015,2]
[393308248,1762446481763,869.94,8.137e-05,2]
[393308249,1762446481970,869.94,8.549e-05,2]
[393308250,1762446482196,869.94,8.96e-05,2]
[393308251,1762446482584,869.94,9.372e-05,2]
[393308252,1762446482799,869.94,9.783e-05,2]
[393308253,1762446483004,869.94,0.00010195,2]
[393308254,1762446483206,869.94,0.00010606,2]
[393308255,1762446483423,869.94,0.00011018,2]
[393308256,1762446483773,869.94,0.00011429,2]
[393308257,1762446483842,869.94,0.00011841,2]
[393308258,1762446484073,869.94,0.00012252,2]
[393308259,1762446484275,869.94,0.00012664,2]
[393308260,1762446484511,869.94,0.00013075,2]
[393308261,1762446484718,869.94,0.00013487,2]
[393308262,1762446485689,869.94,0.00013898,2]
[393308263,1762446485727,869.94,0.0001431,2]
[393308264,1762446485764,869.94,0.00014721,2]
[393308265,1762446486726,247.56446448,0.000135,2]
[393308266,1762446486864,304.77254622,0.000125,2]
[393308267,1762446488588,-1649.650299,0.00038356,120]
[393308268,1762446488626,-1649.650299,0.00038356,120]
[393308269,1762446488663,-1649.650299,0.00038356,120]
[393308270,1762446488701,-1649.650299,0.00038356,120]
[393308271,1762446488738,-1649.650299,0.00038356,120]
[393308272,1762446488774,-1649.650299,0.00038356,120]
[393308273,1762446488811,-1649.650299,0.00038356,120]
[393308274,1762446488851,-151.0,0.00038515,120]
[393308275,1762446488891,-1649.650299,0.00038515,120]
[393308276,1762446488930,-1649.650301,0.00038515,120]
[393308277,1762446488992,-1624331.3201417,0.00046,120]
[393308278,1762446489029,-300.0,0.0004825,120]
[393308279,1762446489065,-150.0,0.00049315,120]
[393308280,1762446489100,-2000.0,0.0004944,62]
[393308281,1762446489140,-1000000.0,0.000495,120]
[393308282,1762446489175,-150.0,0.000495,120]
[393308283,1762446489212,-233.13602775,0.000495,120]
[393308284,1762446489246,-224.5210175,0.000495,120]
[393308285,1762446489283,-152.0,0.000495,120]
[393308286,1762446489319,-1842.3475,0.00049589,120]
[393308287,1762446489356,-600.0,0.00049693,60]
[393308288,1762446489393,-2000.0,0.00049724,120]
[393308289,1762446489447,-312.0,0.00049855,120]
[393308290,1762446489486,-3000.0,0.0004986,69]
[393308291,1762446489524,-1000.0,0.00049932,60]
[393308292,1762446489563,-500.0,0.00049967,60]
[393308293,1762446489606,-1000000.0,0.0005,120]
[393308294,1762446489645,-1000000.0,0.0005,120]
[393308295,1762446489683,-348206.82262005,0.0005,120]
[393308296,1762446494144,-651793.17737995,0.0005,120]
[393308297,1762446494178,-510.5819659,0.0005,120]
[393308298,1762446494211,-224.99161529,0.0005,120]
[393308299,1762446494247,-165.0427782,0.0005,120]
[393308300,1762446494287,-1000000.0,0.0005,120]
[393308301,1762446494321,-1880.87562853,0.0005,120]
[393308302,1762446494397,-200.0,0.0005,120]
[393308303,1762446494434,-150.0,0.0005,120]
[393308304,1762446494473,-198.35019854,0.0005,120]
[393308305,1762446494505,-250.0,0.0005,120]
[393308306,1762446494539,-292.39518845,0.0005,120]
[393308307,1762446494570,-400.0,0.0005,120]
[393308308,1762446494602,-391.0,0.0005,120]
[393308309,1762446494637,-150.0,0.0005,60]
[393308310,1762446494671,-476.04781402,0.0005,120]
[393308311,1762446494703,-225741.53681259,0.0005,120]
[393308312,1762446494735,-6650.05573387,0.0005,120]
[393308313,1762446494766,-3159.64,0.0005,120]
[393308314,1762446494800,-2500.0,0.0005,120]
[393308315,1762446494832,-150.0,0.0005,120]
[393308316,1762446494864,-823.85700883,0.0005,120]
[393308317,1762446494896,-150.0,0.0005,120]
[393308318,1762446494931,-158.88472393,0.0005,120]
[393308319,1762446494966,-19467.53,0.0005,120]
[393308320,1762446495000,-293.2829187,0.0005,120]
[393308321,1762446495035,-228.42,0.0005,120]
[393308322,1762446495067,-157.3,0.0005,120]
[393308323,1762446495099,-1922.69,0.0005,120]
[393308324,1762446495132,-336.28,0.0005,120]
[393308325,1762446495163,-158.78003926,0.0005,120]
[393308326,1762446495193,-7724.1247586,0.0005,120]
[393308327,1762446495225,-5336.56768606,0.0005,120]
[393308328,1762446495257,-424.31754439,0.0005,120]
[393308329,1762446495292,-1283.02,0.0005,120]
[393308330,1762446495326,-203.99,0.0005,120]
[393308331,1762446495359,-240.0,0.0005,90]
[393308332,1762446495393,-1999.0,0.0005,60]
[393308333,1762446495435,-700.0,0.0005,120]
[393308334,1762446495470,-175.92050299,0.0005,120]
[393308335,1762446495507,-581.80786408,0.0005,120]
[393308336,1762446495542,-3000.0,0.000502,120]
[393308337,1762446495574,-312.0,0.00050274,120]
[393308338,1762446495607,-152.0,0.000504,120]
[393308339,1762446495642,-2000.0,0.00050412,120]
[393308340,1762446495677,-1000000.0,0.000505,120]
[393308341,1762446495709,-2105.54,0.00050547,120]
[393308342,1762446495741,-151.0,0.000506,120]
[393308343,1762446495772,-600.0,0.00050789,60]
[393308344,1762446495805,-176.89057065,0.000509,120]
[393308345,1762446495837,-1252.408,0.00050951,120]
[393308346,1762446495868,-574.0,0.00050951,120]
[393308347,1762446495900,-1596.0,0.00050951,120]
[393308348,1762446495931,-812.0,0.00050951,120]
[393308349,1762446495963,-1273.0,0.00050951,120]
[393308350,1762446495995,-6658.0,0.00050951,120]
[393308351,1762446496028,-2141.0,0.00050951,120]
[393308352,1762446496059,-1188.0,0.00050951,120]
[393308353,1762446496090,-905.0,0.00050951,120]
[393308354,1762446496125,-1000000.0,0.00051,120]
[393308355,1762446496160,-1000000.0,0.00051,120]
[393308356,1762446496191,-2000.0,0.00051,120]
[393308357,1762446496225,-150.0,0.00051,120]
[393308358,1762446496256,-150.0,0.00051,120]
[393308359,1762446496291,-5245.0,0.00051,120]
[393308360,1762446496324,-734.92,0.00051,120]
[393308361,1762446496359,-29173.77326717,0.00051,120]
[393308362,1762446499304,-150.0,0.00048,120]
[393308363,1762446499343,-87686.75278002,0.00051,120]
[393308364,1762446499379,-1121.43187453,0.00051,120]
[393308365,1762446499415,-500.0,0.00051063,60]
[393308366,1762446499450,-229.487593,0.000511,120]
[393308367,1762446499483,-1306.68,0.00051187,92]
[393308368,1762446499518,-152.0,0.000513,120]
[393308369,1762446499552,-2368.7325,0.00051506,120]
[393308370,1762446499597,-600.0,0.00051885,60]
[393308371,1762446499629,-151.0,0.000519,120]
[393308372,1762446499661,-625.69267741,0.00051977,60]
[393308373,1762446499696,-1000000.0,0.00052,120]
[393308374,1762446499731,-1000000.0,0.00052,120]
[393308375,1762446499765,-1000000.0,0.00052,120]
[393308376,1762446499800,-1000000.0,0.00052,120]
[393308377,1762446499833,-150.0,0.00052,120]
[393308378,1762446499867,-200.0,0.00052,120]
[393308379,1762446499900,-150.0,0.00052,120]
[393308380,1762446499933,-2000.0,0.0005205,60]
[393308381,1762446499967,-500.0,0.00052054,120]
[393308382,1762446499999,-528.06102787,0.00052054,120]
[393308383,1762446500034,-596.0,0.00052055,120]
[393308384,1762446500068,-596.0,0.00052055,120]
[393308385,1762446500102,-596.0,0.00052055,120]
[393308386,1762446500137,-596.0,0.00052055,120]
[393308387,1762446500173,-596.0,0.00052055,120]
[393308388,1762446500209,-355.0,0.00052055,120]
[393308389,1762446500244,-355.0,0.00052055,120]
[393308390,1762446500277,-355.0,0.00052055,120]
[393308391,1762446500311,-355.0,0.00052055,120]
[393308392,1762446500347,-355.0,0.00052055,120]
[393308393,1762446500382,-355.0,0.00052055,120]
[393308394,1762446500416,-355.0,0.00052055,120]
[393308395,1762446500450,-355.0,0.00052055,120]
[393308396,1762446500617,-648.0,0.00052055,120]
[393308397,1762446500652,-648.0,0.00052055,120]
[393308398,1762446500687,-648.0,0.00052055,120]
[393308399,1762446500725,-648.0,0.00052055,120]
[393308400,1762446500761,-648.0,0.00052055,120]
[393308401,1762446500796,-648.0,0.00052055,120]
[393308402,1762446500831,-448.0,0.00052055,120]
[393308403,1762446500868,-448.0,0.00052055,120]
[393308404,1762446500902,-448.0,0.00052055,120]
[393308405,1762446500938,-448.0,0.00052055,120]
[393308406,1762446500972,-448.0,0.00052055,120]
[393308407,1762446501006,-448.0,0.00052055,120]
[393308408,1762446501040,-448.0,0.00052055,120]
[393308409,1762446501074,-448.0,0.00052055,120]
[393308410,1762446501106,-448.0,0.00052055,120]
[393308411,1762446501139,-631.0,0.00052055,120]
[393308412,1762446501172,-631.0,0.00052055,120]
[393308413,1762446501206,-631.0,0.00052055,120]
[393308414,1762446501240,-631.0,0.00052055,120]
[393308415,1762446501276,-631.0,0.00052055,120]
[393308416,1762446501311,-631.0,0.00052055,120]
[393308417,1762446501346,-631.0,0.00052055,120]
[393308418,1762446501384,-392.0,0.00052055,120]
[393308419,1762446501419,-392.0,0.00052055,120]
[393308420,1762446501453,-392.0,0.00052055,120]
[393308421,1762446501488,-392.0,0.00052055,120]
[393308422,1762446501525,-392.0,0.00052055,120]
[393308423,1762446501558,-392.0,0.00052055,120]
[393308424,1762446501592,-392.0,0.00052055,120]
[393308425,1762446501626,-392.0,0.00052055,120]
[393308426,1762446501661,-392.0,0.00052055,120]
[393308427,1762446501694,-392.0,0.00052055,120]
[393308428,1762446501728,-392.0,0.00052055,120]
[393308429,1762446501761,-604.0,0.00052055,120]
[393308430,1762446501794,-604.0,0.00052055,120]
[393308431,1762446501827,-604.0,0.00052055,120]
[393308432,1762446501863,-604.0,0.00052055,120]
[393308433,1762446501896,-604.0,0.00052055,120]
[393308434,1762446501930,-604.0,0.00052055,120]
[393308435,1762446501964,-604.0,0.00052055,120]
[393308436,1762446501998,-379.0,0.00052055,120]
[393308437,1762446502033,-379.0,0.00052055,120]
[393308438,1762446502065,-379.0,0.00052055,120]
[393308439,1762446502097,-379.0,0.00052055,120]
[393308440,1762446502130,-379.0,0.00052055,120]
[393308441,1762446502163,-379.0,0.00052055,120]
[393308442,1762446502196,-379.0,0.00052055,120]
[393308443,1762446502230,-379.0,0.00052055,120]
[393308444,1762446502264,-379.0,0.00052055,120]
[393308445,1762446502298,-379.0,0.00052055,120]
[393308446,1762446502332,-379.0,0.00052055,120]
[393308447,1762446502372,-482.0,0.00052055,120]
[393308448,1762446502411,-482.0,0.00052055,120]
[393308449,1762446502450,-482.0,0.00052055,120]
[393308450,1762446502486,-482.0,0.00052055,120]
[393308451,1762446502520,-482.0,0.00052055,120]
[393308452,1762446502553,-482.0,0.00052055,120]
[393308453,1762446502588,-482.0,0.00052055,120]
[393308454,1762446502622,-337.0,0.00052055,120]
[393308455,1762446502655,-337.0,0.00052055,120]
[393308456,1762446502689,-337.0,0.00052055,120]
[393308457,1762446502722,-337.0,0.00052055,120]
[393308458,1762446502755,-337.0,0.00052055,120]
[393308459,1762446502789,-337.0,0.00052055,120]
[393308460,1762446502821,-337.0,0.00052055,120]
[393308461,1762446502855,-337.0,0.00052055,120]
[393308462,1762446502890,-337.0,0.00052055,120]
[393308463,1762446502922,-337.0,0.00052055,120]
[393308464,1762446502956,-337.0,0.00052055,120]
[393308465,1762446502988,-526.0,0.00052055,120]
[393308466,1762446503025,-526.0,0.00052055,120]
[393308467,1762446503059,-526.0,0.00052055,120]
[393308468,1762446503094,-526.0,0.00052055,120]
[393308469,1762446503132,-526.0,0.00052055,120]
[393308470,1762446503169,-526.0,0.00052055,120]
[393308471,1762446503208,-526.0,0.00052055,120]
[393308472,1762446503243,-353.0,0.00052055,120]
[393308473,1762446503281,-353.0,0.00052055,120]
[393308474,1762446503317,-353.0,0.00052055,120]
[393308475,1762446503355,-353.0,0.00052055,120]
[393308476,1762446503391,-353.0,0.00052055,120]
[393308477,1762446503431,-353.0,0.00052055,120]
[393308478,1762446503470,-353.0,0.00052055,120]
[393308479,1762446503510,-353.0,0.00052055,120]
[393308480,1762446503547,-353.0,0.00052055,120]
[393308481,1762446503583,-353.0,0.00052055,120]
[393308482,1762446503619,-353.0,0.00052055,120]
[393308483,1762446503655,-153.0,0.00052055,120]
[393308484,1762446503931,-153.0,0.00052055,120]
[393308485,1762446503970,-153.0,0.00052055,120]
[393308486,1762446504006,-153.0,0.00052055,120]
[393308487,1762446504041,-153.0,0.00052055,120]
[393308488,1762446504505,150.0,0.00049315,120]
[393308489,1762446504700,362.979502,0.00038515,120]
[393308490,1762446504812,282.0,0.0005205,60]
[393308491,1762446504878,362.979502,0.00038515,120]
[393308492,1762446505865,150.0,0.00052054,120]
[393308493,1762446506040,150.0,0.00052054,120]
[393308494,1762446506256,150.0,0.00052054,120]
[393308495,1762446506464,150.0,0.00052054,120]
[393308496,1762446506670,200.0,0.00052054,120]
[393308497,1762446506958,362.979502,0.00038515,120]
[393308498,1762446506996,346.0,0.0005205,60]
[393308499,1762446507520,5612.49371568,0.0004649,120]
[393308500,1762446507773,359.0,0.0005205,60]
[393308501,1762446508555,374.0,0.0005205,60]
[393308502,1762446509126,362.979498,0.00038515,120]
[393308503,1762446509347,246.592492,0.00038515,120]
[393308504,1762446509391,350.0,0.0005205,60]
[393308505,1762446510151,337.0,0.0005205,60]
[393308506,1762446510929,246.0,0.0005205,60]
[393308507,1762446516687,2000.0,0.00038515,60]
[393308552,1762446632266,-869.94,0.00015133,2]
[393308553,1762446632277,-195.0,0.00015184,2]
[393308554,1762446632287,-211.10391991,0.00015235,2]
[393308555,1762446632298,-250.0,0.00015338,2]
[393308556,1762446632308,-869.94,0.00015544,2]
[393308557,1762446632318,-289.87235092,0.00015765,2]
[393308558,1762446632328,-869.94,0.00015956,2]
[393308559,1762446632338,-250.0,0.00016024,2]
[393308560,1762446632347,-338.29042429,0.00016167,2]
[393308561,1762446632360,-1372.88998,0.00016167,2]
[393308562,1762446632371,-1126.35959571,0.00016167,2]
[393308563,1762446632381,-300.0,0.00016198,2]
[393308564,1762446632390,-617.72040429,0.00016198,2]
[393308565,1762446632411,-582.27959571,0.00016198,2]
[393308566,1762446632420,-300.0,0.00016198,2]
[393308567,1762446632430,-300.0,0.00016198,2]
[393308568,1762446632440,-205.81,0.00016198,2]
[393308569,1762446632452,-224.92884361,0.00016199,2]
[393308570,1762446632465,-353.39715174,0.00016199,2]
[393308571,1762446632475,-500.0,0.00016199,2]
[393308572,1762446632484,-500.0,0.00016199,2]
[393308573,1762446632494,-500.0,0.00016199,2]
[393308574,1762446632503,-500.0,0.00016199,2]
[393308575,1762446632514,-8394.45,0.000162,5]
[393308576,1762446632523,-200.0,0.00016204,2]
[393308577,1762446632533,-5651.69,0.00016347,2]
[393308578,1762446632542,-848.5,0.00016438,2]
[393308580,1762446632551,-500.0,0.00016438,2]
[393308582,1762446632560,-500.0,0.00016438,2]
[393308584,1762446632570,-500.0,0.00016438,2]
[393308587,1762446632579,-500.0,0.00016438,2]
[393308588,1762446632589,-500.0,0.00016438,2]
[393308589,1762446632598,-500.0,0.00016438,2]
[393308591,1762446632607,-500.0,0.00016438,2]
[393308593,1762446632617,-500.0,0.00016438,2]
[393308595,1762446632626,-500.0,0.00016438,2]
[393308597,1762446632635,-500.0,0.00016438,2]
[393308599,1762446632645,-500.0,0.00016438,2]
[393308601,1762446632654,-500.0,0.00016438,2]
[393308603,1762446632666,-500.0,0.00016438,2]
[393308605,1762446632675,-500.0,0.00016438,2]
[393308607,1762446632684,-164.62222882,0.00016438,2]
[393308609,1762446632693,-500.0,0.00016438,2]
[393308611,1762446632702,-500.0,0.00016438,2]
[393308613,1762446632713,-500.0,0.00016438,2]
[393308615,1762446632723,-500.0,0.00016438,2]
[393308617,1762446632732,-500.0,0.00016438,2]
[393308618,1762446632742,-500.0,0.00016438,2]
[393308621,1762446632751,-500.0,0.00016438,2]
[393308623,1762446632761,-500.0,0.00016438,2]
[393308625,1762446632770,-500.0,0.00016438,2]
[393308626,1762446632779,-500.0,0.00016438,2]
[393308628,1762446632788,-500.0,0.00016438,2]
[393308630,1762446632798,-500.0,0.00016438,2]
[393308632,1762446632807,-500.0,0.00016438,2]
[393308635,1762446632818,-500.0,0.00016438,2]
[393308637,1762446632828,-500.0,0.00016438,2]
[393308638,1762446632837,-500.0,0.00016438,2]
[393308641,1762446632852,-500.0,0.00016438,2]
[393308643,1762446632861,-500.0,0.00016438,2]
[393308645,1762446632871,-500.0,0.00016438,2]
[393308647,1762446632880,-500.0,0.00016438,2]
[393308649,1762446632889,-500.0,0.00016438,2]
[393308650,1762446632898,-500.0,0.00016438,2]
[393308653,1762446632909,-500.0,0.00016438,2]
[393308655,1762446632918,-500.0,0.00016438,2]
[393308657,1762446632927,-500.0,0.00016438,2]
[393308659,1762446632937,-500.0,0.00016438,2]
[393308661,1762446632945,-500.0,0.00016438,2]
[393308663,1762446632954,-500.0,0.00016438,2]
[393308664,1762446632965,-500.0,0.00016438,2]
[393308666,1762446632975,-500.0,0.00016438,2]
[393308668,1762446632984,-500.0,0.00016438,2]
[393308670,1762446632993,-500.0,0.00016438,2]
[393308672,1762446633003,-500.0,0.00016438,2]
[393308674,1762446633013,-500.0,0.00016438,2]
[393308676,1762446633023,-500.0,0.00016438,2]
[393308678,1762446633033,-500.0,0.00016438,2]
[393308680,1762446633043,-500.0,0.00016438,2]
[393308682,1762446633053,-500.0,0.00016438,2]
[393308684,1762446633064,-150.00000001,0.00016438,2]
[393308686,1762446633076,-500.0,0.00016438,2]
[393308688,1762446633087,-500.0,0.00016438,2]
[393308690,1762446633098,-500.0,0.00016438,2]
[393308692,1762446633109,-419.2814,0.00016493,2]
[393308694,1762446633121,-4692.29,0.00016513,2]
[393308696,1762446633131,-250.0,0.00016646,2]
[393308698,1762446633142,-300.0,0.00016646,2]
[393308700,1762446633152,-300.0,0.00016646,2]
[393308702,1762446633163,-300.0,0.00016646,2]
[393308704,1762446633174,-300.0,0.00016646,2]
[393308706,1762446633185,-355.86717793,0.00016646,2]
[393308708,1762446633196,-195.0,0.00016646,2]
[393308710,1762446633209,-2500.0,0.00016646,2]
[393308712,1762446633224,-195.0,0.00016646,2]
[393308714,1762446633235,-848.5,0.00016712,2]
[393308716,1762446633246,-150.0,0.00016906,2]
[393308718,1762446633259,-506.66,0.00016939,2]
[393308720,1762446633271,-848.5,0.00016986,2]
[393308722,1762446633283,-250.0,0.00017,2]
[393308724,1762446633294,-302.31018519,0.00017022,2]
[393308726,1762446633304,-2500.0,0.00017022,2]
[393308728,1762446633315,-282.95484058,0.00017039,2]
[393308729,1762446633327,-343.24,0.00017072,2]
[393308732,1762446633338,-302.31018515,0.0001712,2]
[393308734,1762446633350,-500.0,0.00017121,2]
[393308736,1762446633360,-500.0,0.00017121,2]
[393308738,1762446633371,-144375.07218197,0.00017122,2]
[393308740,1762446633384,-14631.3352117,0.00017122,2]
[393308742,1762446633396,-702.36835528,0.00017122,2]
[393308745,1762446633413,-98917.27268176,0.00017122,2]
[393308840,1762446640243,-8537.49315708,0.00017122,2]
[393308841,1762446640352,-152836.45841221,0.00017122,2]
[393308842,1762446640362,-1000.0,0.00017122,2]
[393308843,1762446640373,-500.0,0.00017173,2]
[393308844,1762446640383,-566.03408857,0.00017173,2]
[393308845,1762446640392,-527.53172848,0.00017173,2]
[393308846,1762446640402,-500.0,0.00017173,2]
[393308847,1762446640411,-500.0,0.00017173,2]
[393308848,1762446640420,-500.0,0.00017173,2]
[393308849,1762446640430,-500.0,0.00017173,2]
[393308850,1762446640444,-500.0,0.00017173,2]
[393308851,1762446640453,-500.0,0.00017173,2]
[393308852,1762446640463,-500.0,0.00017173,2]
[393308853,1762446640475,-500.0,0.00017173,2]
[393308854,1762446640485,-500.0,0.00017173,2]
[393308855,1762446640494,-500.0,0.00017173,2]
[393308856,1762446640503,-274.31462951,0.00017173,2]
[393308857,1762446640513,-500.0,0.00017173,2]
[393308858,1762446640522,-485.53484003,0.00017173,2]
[393308859,1762446640531,-503.46009537,0.00017173,2]
[393308860,1762446640540,-315.63,0.0001719,2]
[393308861,1762446640549,-302.31018515,0.00017217,2]
[393308862,1762446640559,-500.0,0.00017221,2]
[393308864,1762446640568,-500.0,0.00017221,2]
[393308866,1762446640577,-929.0,0.00017249,2]
[393308868,1762446640586,-848.5,0.0001726,2]
[393308871,1762446640601,-929.0,0.00017283,2]
[393308873,1762446640614,-500.0,0.00017294,2]
[393308875,1762446640624,-302.31018515,0.00017315,2]
[393308876,1762446640634,-500.0,0.00017381,2]
[393308877,1762446640643,-302.31018515,0.00017412,2]
[393308878,1762446640653,-5888.0,0.00017418,2]
[393308879,1762446640662,-929.0,0.00017469,2]
[393308880,1762446640672,-20000.0,0.000175,2]
[393308881,1762446640682,-462.90844525,0.00017504,2]
[393308882,1762446640691,-302.31018515,0.0001751,2]
[393308883,1762446640702,-176.91,0.00017521,2]
[393308884,1762446640721,-353.55,0.00017521,2]
[393308885,1762446640731,-176.91,0.00017521,2]
[393308886,1762446640740,-848.5,0.00017534,2]
[393308887,1762446640750,-929.0,0.00017557,2]
[393308888,1762446640759,-302.31018515,0.00017607,2]
[393308889,1762446640768,-213.2608074,0.00017639,2]
[393308890,1762446640778,-2456.0,0.00017639,2]
[393308891,1762446640788,-929.0,0.0001766,2]
[393308892,1762446640797,-1063.1084148,0.00017685,2]
[393308893,1762446640808,-5000.0,0.000177,2]
[393308894,1762446640818,-302.31018515,0.00017705,2]
[393308895,1762446640851,-420.0,0.00017706,2]
[393308896,1762446640860,-420.0,0.00017706,2]
[393308897,1762446640870,-1000.0,0.00017721,2]
[393308898,1762446640880,-1000.0,0.00017721,2]
[393308899,1762446640890,-1000.0,0.00017721,2]